{"text_format":"1","workbook":"xlsx","n_sheets":6,"sheets":["Modalità di utilizzo","L4 Elementi dell'AS","L4 Punteggi di AS","Ana","Punteggi di AQ","Offerta di AQ"],"not_rendered":{"charts":0,"images":0,"macros":1,"external_links":0,"defined_names":1,"comments":1,"pivot_tables":0},"unopened":[],"bounds":{"document_bytes":16777216,"sheet_cells":100000,"rows_first":2000,"rows_last":500,"rows_between":2000,"halvings":0,"cell_chars":16384,"cell_head_chars":4096},"cells_cut":0,"cells_raw":0,"read":"whole","date_system":"1900"}

{"sheet":"Modalità di utilizzo","index":0,"n_rows":6,"n_cols":1,"rows_kept":6,"cut":false,"hidden":false,"merged":[[0,0,0,20],[3,0,3,20],[5,0,14,20]]}
["Accordo quadro per l’affidamento di servizi applicativi e servizi di supporto in ambito\n“Sanita’ digitale - Sistemi informativi clinico-assistenziali 2” per le Pubbliche Amministrazioni del SSN\nID Sigef 2106"]
["Sanità Digitale Lotti Applicativi LOTTO 4"]
[]
["Il presente excel può essere utilizzato a supporto della predisposizione di un AS."]
[]
["Nel foglio \"Elementi dell'AS\" la PA deve inserire le informazioni richieste nelle celle verdi in base ai prodotti e servizi previsti.\nSi fa presente che:\n- La quota dedicata agli AS equivale ad importo massimo pari al 70% del massimale del relativo lotto.\n- la PA può richiedere, in accordo con quanto previsto nella documentazione dell'iniziativa, dei servizi accessori aggiuntivi. La BA associata a tali servizi accessori aggiuntivi non può essere superiore al 50% della BdA dell'AS.\n\nLotto 1: Cartella Clinica Elettronica - PPAA del SSN Nord - Valore totale, IVA esclusa: 168.000.000,00 Euro - Quota dedicata agli AS: 117.600.000,00 Euro\nLotto 2: Cartella Clinica Elettronica - PPAA del SSN Centro-Sud - Valore totale, IVA esclusa: 252.000.000,00 Euro - Quota dedicata agli AS: 176.400.000,00 Euro\nLotto 3: Enterprise Imaging - PPAA del SSN Nord - Valore totale, IVA esclusa: 152.000.000,00 Euro - Quota dedicata agli AS: 106.400.000,00 Euro\nLotto 4: Enterprise Imaging - PPAA del SSN Centro-Sud - Valore totale, IVA esclusa: 228.000.000,00 Euro - Quota dedicata agli AS: 159.600.000,00 Euro\n"]

{"sheet":"L4 Elementi dell'AS","index":1,"n_rows":37,"n_cols":7,"rows_kept":37,"cut":false,"hidden":false,"merged":[[1,3,1,5],[5,5,6,5],[5,6,6,6],[5,1,5,4],[21,1,22,1],[21,2,22,2],[20,1,20,3],[21,4,22,4],[20,5,22,5],[20,6,22,6],[21,3,22,3]]}
[]
[null,null,"Lotto 4 - Base d'Asta AS ",{"$f":"G19+G33","v":1894946.24}]
[]
[null,null,"Inserire i valori nelle celle con sfondo giallo in base agli elementi previsti nell'AS"]
[]
[null,"SERVIZI",null,null,null,"Prezzo maggiore offerto in AQ","Prezzo Totale in AS"]
[null,"ID","Elemento","Numero di unità richieste","Metrica"]
[null,1,"Tariffa omnicomprensiva per 1 Giorno/Team ottimale (8 ore lavorative) - Sviluppo di Applicazioni Software Ex novo – Green\nField",null,"GG/persona",{"$f":"MAX('Offerta di AQ'!D3:G3)","v":209.22},{"$f":"D8*F8","v":0}]
[null,2,"Tariffa omnicomprensiva per 1 Giorno/Team ottimale (8 ore lavorative)- Evoluzione di Applicazioni Software Esistenti",1015,"GG/persona",{"$f":"MAX('Offerta di AQ'!D4:G4)","v":190.5},{"$f":"D9*F9","v":193357.5}]
[null,3,"Tariffa omnicomprensiva per 1 Giorno/Team ottimale (8 ore lavorative) - Migrazione Applicativa al Cloud",null,"GG/persona",{"$f":"MAX('Offerta di AQ'!D5:G5)","v":210.1},0]
[null,4,"Tariffa omnicomprensiva per 1 Giorno/Team ottimale (8 ore lavorative) - Configurazione e Personalizzazione di Soluzioni di terze parti/open source/riuso",286,"GG/persona",{"$f":"MAX('Offerta di AQ'!D6:G6)","v":197.3},56427.8]
[null,5,"Tariffa omnicomprensiva per 1 Giorno/Team ottimale (8 ore lavorative) - Manutenzione Adeguativa",null,"GG/persona",{"$f":"MAX('Offerta di AQ'!D7:G7)","v":187},0]
[null,6,"Tariffa omnicomprensiva per 1 Giorno/Team ottimale (8 ore lavorative) - Manutenzione Correttiva",null,"GG/persona",{"$f":"MAX('Offerta di AQ'!D8:G8)","v":184.23},0]
[null,7,"Canone per 1 Full Time Equivalent (FTE) impiegato mensilmente - Manutenzione Adeguativa e Manutenzione Correttiva",90,"FTE/mese",{"$f":"MAX('Offerta di AQ'!D9:G9)","v":3699.72},332974.8]
[null,8,"Tariffa omnicomprensiva per 1 Giorno/Team ottimale (8 ore lavorative) - Conduzione Applicativa – Servizi di gestione Applicativi e Base Dati",915,"GG/persona",{"$f":"MAX('Offerta di AQ'!D10:G10)","v":186.72},170848.8]
[null,9,"Tariffa omnicomprensiva per 1 Giorno/Team ottimale (8 ore lavorative) - Conduzione Applicativa – Supporto Specialistico",null,"GG/persona",{"$f":"MAX('Offerta di AQ'!D11:G11)","v":238.75},0]
[null,10,"Tariffa omnicomprensiva per 1 Giorno/Team ottimale (8 ore\nlavorative) – Servizi Infrastrutturali – Servizio di Conduzione Tecnica",985,"GG/persona",{"$f":"MAX('Offerta di AQ'!D12:G12)","v":197.1},{"$f":"D17*F17","v":194143.5}]
[null,11,"Tariffa omnicomprensiva per 1 Giorno/Team ottimale (8 ore lavorative) – Servizi Infrastrutturali – Supporto Tecnologico",null,"GG/persona",{"$f":"MAX('Offerta di AQ'!D13:G13)","v":224.4},0]
[null,null,null,null,null,"TOTALE",{"$f":"SUM(G8:G18)","v":947752.39999999991}]
[]
[null,"SERVIZI ACCESSORI",null,null,null,"Prezzo maggiore offerto in AQ","Prezzo Totale in AS"]
[null,"ID","Elemento","Numero di unità richieste","Metrica"]
[]
[null,12,"Tariffa per singolo esame - livello BASSO complessità della struttura sanitaria – RIS-PACS – soluzione standard",null,"Unità",{"$f":"MAX('Offerta di AQ'!D14:G14)","v":1.05},{"$f":"D24*F24","v":0}]
[null,13,"Tariffa per singolo esame - livello MEDIO complessità della struttura sanitaria – RIS-PACS – soluzione standard",null,"Unità",{"$f":"MAX('Offerta di AQ'!D15:G15)","v":0.76},{"$f":"D25*F25","v":0}]
[null,14,"Tariffa per singolo esame -  livello ALTO complessità della struttura sanitaria – RIS-PACS – soluzione standard",null,"Unità",{"$f":"MAX('Offerta di AQ'!D16:G16)","v":0.65},0]
[null,"Altri","Servizi, prodotti, SaaS e soluzioni di mercato attinenti alle “aree tematiche di riferimento”",null,null,null,347193.84]
[null,"Altri","Servizi, prodotti, SaaS e soluzioni di mercato attinenti alle “aree tematiche di riferimento”",null,null,null,600000]
[null,"Altri"]
[null,"Altri"]
[null,"Altri"]
[null,"Altri"]
[null,null,null,null,null,"TOTALE",{"$f":"SUM(G24:G32)","v":947193.84000000008}]
[]
[null,null,null,{"$f":"(0.5*G19)-G33","v":-473317.64000000013}]
[null,null,null,"!! ATTENZIONE!!"]
[null,null,null,"\nSi ricorda che il totale servizi accessori non può essere superiore al 50% della BdA dell'AS"]

{"sheet":"L4 Punteggi di AS","index":2,"n_rows":28,"n_cols":14,"rows_kept":28,"cut":false,"hidden":false,"merged":[]}
[]
[null,null,"Inserire i valori nelle celle con sfondo giallo"]
[]
[null,null,"Componente Tecnica",null,null,null,null,"Componente Economica",null,null,null,null,"Complessivo"]
[]
[null,null,"Punteggio Tecnico Totale di AS - PT tot AS",80,null,null,null,"Prezzo complessivo offerto in AS (come calcolato dal Sistema)",null,null,null,null,"Punteggi complessivi in AS"]
[null,null,"% Scelta dalla PA",0.25,null,null,null,{"$f":"'Punteggi di AQ'!B2","v":"RTI EBIT"},null,null,null,null,{"$f":"'Punteggi di AQ'!B2","v":"RTI EBIT"},{"$f":"D25+I19","v":39.282668571428573}]
[null,null,"Punteggio Tecnico dell’AS - PT AS",{"$f":"D6-D9","v":60},null,null,null,{"$f":"'Punteggi di AQ'!B3","v":"RTI GPI"},null,null,null,null,{"$f":"'Punteggi di AQ'!B3","v":"RTI GPI"},{"$f":"D26+I20","v":39.740259999999992}]
[null,null,"Punteggio Tecnico massimo ereditabile - PT ER",{"$f":"70*$D$7*($D$6/70)","v":20},null,null,null,{"$f":"'Punteggi di AQ'!B4","v":"RTI Engineering"},null,null,null,null,{"$f":"'Punteggi di AQ'!B4","v":"RTI Engineering"},{"$f":"D27+I21","v":38.43102571428571}]
[null,null,null,null,null,null,null,{"$f":"'Punteggi di AQ'!B5","v":"RTI Enterprise Services"},null,null,null,null,{"$f":"'Punteggi di AQ'!B5","v":"RTI Enterprise Services"},{"$f":"D28+I22","v":38.859068571428566}]
[]
[null,null,"Punteggi tecnici ereditati dalla fase di AQ",null,null,null,null,"Ribassi di AS"]
[null,null,{"$f":"'Punteggi di AQ'!B2","v":"RTI EBIT"},{"$f":"'Punteggi di AQ'!C2*'L4 Punteggi di AS'!$D$7*('L4 Punteggi di AS'!$D$6/70)","v":19.282668571428569},null,null,null,{"$f":"'Punteggi di AQ'!B2","v":"RTI EBIT"},{"$f":"IF(('L4 Elementi dell''AS'!$G$19+'L4 Elementi dell''AS'!$G$33) >0,ROUND(1-I7/('L4 Elementi dell''AS'!$G$19+'L4 Elementi dell''AS'!$G$33),6),0)","v":1}]
[null,null,{"$f":"'Punteggi di AQ'!B3","v":"RTI GPI"},{"$f":"'Punteggi di AQ'!C3*'L4 Punteggi di AS'!$D$7*('L4 Punteggi di AS'!$D$6/70)","v":19.740259999999996},null,null,null,{"$f":"'Punteggi di AQ'!B3","v":"RTI GPI"},{"$f":"IF(('L4 Elementi dell''AS'!$G$19+'L4 Elementi dell''AS'!$G$33) >0,ROUND(1-I8/('L4 Elementi dell''AS'!$G$19+'L4 Elementi dell''AS'!$G$33),6),0)","v":1}]
[null,null,{"$f":"'Punteggi di AQ'!B4","v":"RTI Engineering"},{"$f":"'Punteggi di AQ'!C4*'L4 Punteggi di AS'!$D$7*('L4 Punteggi di AS'!$D$6/70)","v":18.431025714285713},null,null,null,{"$f":"'Punteggi di AQ'!B4","v":"RTI Engineering"},{"$f":"IF(('L4 Elementi dell''AS'!$G$19+'L4 Elementi dell''AS'!$G$33) >0,ROUND(1-I9/('L4 Elementi dell''AS'!$G$19+'L4 Elementi dell''AS'!$G$33),6),0)","v":1}]
[null,null,{"$f":"'Punteggi di AQ'!B5","v":"RTI Enterprise Services"},{"$f":"'Punteggi di AQ'!C5*'L4 Punteggi di AS'!$D$7*('L4 Punteggi di AS'!$D$6/70)","v":18.859068571428569},null,null,null,{"$f":"'Punteggi di AQ'!B5","v":"RTI Enterprise Services"},{"$f":"IF(('L4 Elementi dell''AS'!$G$19+'L4 Elementi dell''AS'!$G$33) >0,ROUND(1-I10/('L4 Elementi dell''AS'!$G$19+'L4 Elementi dell''AS'!$G$33),6),0)","v":1}]
[]
[null,null,{"$f":"\"Punteggi tecnici assegnati in AS (arrotondati alla 4 cifra decimale) - Max: \"&D8","v":"Punteggi tecnici assegnati in AS (arrotondati alla 4 cifra decimale) - Max: 60"},null,null,null,null,"Punteggi economici di AS"]
[null,null,{"$f":"'Punteggi di AQ'!B2","v":"RTI EBIT"},null,null,null,null,{"$f":"'Punteggi di AQ'!B2","v":"RTI EBIT"},{"$f":"ROUND((1-POWER((1-I13),2))*(100-$D$6),4)","v":20}]
[null,null,{"$f":"'Punteggi di AQ'!B3","v":"RTI GPI"},null,null,null,null,{"$f":"'Punteggi di AQ'!B3","v":"RTI GPI"},{"$f":"ROUND((1-POWER((1-I14),2))*(100-$D$6),4)","v":20}]
[null,null,{"$f":"'Punteggi di AQ'!B4","v":"RTI Engineering"},null,null,null,null,{"$f":"'Punteggi di AQ'!B4","v":"RTI Engineering"},20]
[null,null,{"$f":"'Punteggi di AQ'!B5","v":"RTI Enterprise Services"},null,null,null,null,{"$f":"'Punteggi di AQ'!B5","v":"RTI Enterprise Services"},20]
[]
[null,null,"Punteggi tecnici complessivi di AS"]
[null,null,{"$f":"'Punteggi di AQ'!B2","v":"RTI EBIT"},{"$f":"D19+D13","v":19.282668571428569}]
[null,null,{"$f":"'Punteggi di AQ'!B3","v":"RTI GPI"},{"$f":"D20+D14","v":19.740259999999996}]
[null,null,{"$f":"'Punteggi di AQ'!B4","v":"RTI Engineering"},{"$f":"D21+D15","v":18.431025714285713}]
[null,null,{"$f":"'Punteggi di AQ'!B5","v":"RTI Enterprise Services"},{"$f":"D22+D16","v":18.859068571428569}]

{"sheet":"Ana","index":3,"n_rows":10,"n_cols":1,"rows_kept":10,"cut":false,"hidden":true,"merged":[]}
["Servizi_Accessori"]
["Servizi di gestione operativa"]
["Servizi di classificazione/modellazione dei dati e data entry manuali"]
["Servizi di acquisizione dati per i progetti di Smart Health"]
["Servizi archivistici e Servizi finalizzati all’acquisizione dei formati digitali"]
["Servizi di e-learning ed assistenza virtuale"]
["Servizi di contact center e Service Desk/help desk di I livello"]
["Servizi di Service Control Room per Monitoraggio tecnico/applicativo"]
["Servizi, prodotti, SaaS e soluzioni di mercato attinenti alle “aree tematiche di riferimento”"]
["Soluzioni di Servizi per la gestione della conservazione digitale a norma"]

{"sheet":"Punteggi di AQ","index":4,"n_rows":5,"n_cols":3,"rows_kept":5,"cut":false,"hidden":false,"merged":[]}
[]
[null,"RTI EBIT",67.489339999999999]
[null,"RTI GPI",69.090909999999994]
[null,"RTI Engineering",64.508589999999998]
[null,"RTI Enterprise Services",66.006739999999994]

{"sheet":"Offerta di AQ","index":5,"n_rows":16,"n_cols":7,"rows_kept":16,"cut":false,"hidden":false,"merged":[]}
[]
[null,"Codice Servizio","DESCRIZIONE","RTI EBIT","RTI GPI","RTI Engineering","RTI Enterprise Services"]
[null,1,"Tariffa omnicomprensiva per 1 Giorno/Team ottimale (8 ore lavorative) - Sviluppo di Applicazioni Software Ex novo – Green\nField",166.1,193.78,156,209.22]
[null,2,"Tariffa omnicomprensiva per 1 Giorno/Team ottimale (8 ore lavorative)- Evoluzione di Applicazioni Software Esistenti",161.78,188.04,146.5,190.5]
[null,3,"Tariffa omnicomprensiva per 1 Giorno/Team ottimale (8 ore lavorative) - Migrazione Applicativa al Cloud",169.54,194.24,157,210.1]
[null,4,"Tariffa omnicomprensiva per 1 Giorno/Team ottimale (8 ore lavorative) - Configurazione e Personalizzazione di Soluzioni di terze parti/open source/riuso",163.69999999999999,190.79,151,197.3]
[null,5,"Tariffa omnicomprensiva per 1 Giorno/Team ottimale (8 ore lavorative) - Manutenzione Adeguativa",156.53,186.75,145.75,187]
[null,6,"Tariffa omnicomprensiva per 1 Giorno/Team ottimale (8 ore lavorative) - Manutenzione Correttiva",155.37,184.23,142.25,181.95]
[null,7,"Canone per 1 Full Time Equivalent (FTE) impiegato mensilmente\n- Manutenzione Adeguativa e Manutenzione Correttiva",3114.36,3699.72,2866,3669.3]
[null,8,"Tariffa omnicomprensiva per 1 Giorno/Team ottimale (8 ore lavorative) - Conduzione Applicativa – Servizi di gestione Applicativi e Base Dati",162.43,186.72,145,181.85]
[null,9,"Tariffa omnicomprensiva per 1 Giorno/Team ottimale (8 ore lavorative) - Conduzione Applicativa – Supporto Specialistico",174.74,205.12,173.25,238.75]
[null,10,"Tariffa omnicomprensiva per 1 Giorno/Team ottimale (8 ore\nlavorative) – Servizi Infrastrutturali – Servizio di Conduzione Tecnica",174.86,194.15,162,197.1]
[null,11,"Tariffa omnicomprensiva per 1 Giorno/Team ottimale (8 ore lavorative) – Servizi Infrastrutturali – Supporto Tecnologico",179.84,201.29,169.6,224.4]
[null,12,"Tariffa per singolo esame - livello BASSO complessità della struttura sanitaria – RIS-PACS – soluzione standard",1.05,0.86,0.43,0.9]
[null,13,"Tariffa per singolo esame - livello MEDIO complessità della struttura sanitaria – RIS-PACS – soluzione standard",0.76,0.66,0.37,0.76]
[null,14,"Tariffa per singolo esame -  livello ALTO complessità della struttura sanitaria – RIS-PACS – soluzione standard",0.41,0.53,0.32,0.65]